Cogmind - Beta 11 X8 @@@ ROGUE MODE // 2021.12.10 @ 01:44:39 Player: Luna Result: Escaped! Performance ------------- Evolutions (9) 4500 Regions Visited (18) 3600 Robots Destroyed (195) 975 Value Destroyed (7300) 7300 Prototype IDs (38) 760 Alien Tech Used (0) 0 Bonus (6092) 6092 TOTAL SCORE: 23227 Bonus ------- High Alert Combat Kills 443 Follower Combat Kills 2222 Network Hubs Disabled 200 Aligned with FarCom 300 Built Enhanced Grunts 300 A7 Reached Mainframe 300 Win 3000 Friendly Fire -673 Cogmind --------- Core Integrity 1546/1600 Matter 292/300 Energy 751/770 System Corruption 8% Temperature Cool (17) Movement Treading (161) Location To Epsilon Eridani Parts ------- > --- POWER (2) -------- Light Particle Reactor Light Quantum Reactor > --- PROPULSION (6) --- Medium Treads Heavy Siege Treads Biometal Medium Treads Centrium Heavy Treads > --- UTILITY (12) ----- Advanced Heat Sink Improved Coolant Injector Huge Storage Unit Advanced Energy Well Machine Analyzer Enhanced Optical Array Advanced Terrain Scan Processor Advanced Targeting Computer Centrium Medium Armor Plating Centrium Medium Armor Plating Hacking Suite Improved Hacking Suite > --- WEAPON (5) ------- Enhanced Quantum Rifle Cooled Phase Cannon Cooled Phase Cannon Cooled Phase Cannon Cooled Phase Cannon > --- INVENTORY (25) --- Light Particle Reactor Quantum Reactor Medium Treads Medium Treads Medium Treads Advanced Medium Treads Advanced Medium Treads Advanced Heat Sink Advanced Terrain Scanner Advanced Targeting Computer Heavy Armor Plating Layered Medium Armor Plating Reactive Plating Advanced Recalibrator Phase Gun Advanced Variable Charge Gun Quantum Rifle Cooled Phase Cannon Improved KE Penetrator Improved KE Penetrator Faulty Light Antimatter Cannon Heavy Rocket Launcher Field Lobotomy Kit (3) Power Sword Peak State ------------ > --- POWER ------------ Light Particle Reactor Light Quantum Reactor > --- PROPULSION ------- Medium Treads Heavy Siege Treads Biometal Medium Treads Centrium Heavy Treads > --- UTILITY ---------- Advanced Heat Sink Improved Coolant Injector Huge Storage Unit Advanced Energy Well Machine Analyzer Enhanced Optical Array Advanced Terrain Scan Processor Advanced Targeting Computer Centrium Medium Armor Plating Centrium Medium Armor Plating Hacking Suite Improved Hacking Suite > --- WEAPON ----------- Enhanced Quantum Rifle Cooled Phase Cannon Cooled Phase Cannon Cooled Phase Cannon Cooled Phase Cannon > --- INVENTORY -------- Light Particle Reactor Quantum Reactor Medium Treads Medium Treads Medium Treads Advanced Medium Treads Advanced Medium Treads Advanced Heat Sink Advanced Terrain Scanner Advanced Targeting Computer Heavy Armor Plating Layered Medium Armor Plating Reactive Plating Advanced Recalibrator Phase Gun Advanced Variable Charge Gun Quantum Rifle Cooled Phase Cannon Improved KE Penetrator Improved KE Penetrator Light Antimatter Cannon Heavy Rocket Launcher Field Lobotomy Kit Power Sword [Rating: 178] Favorites ----------- Power Improved Deuterium Engine Engine Improved Deuterium Engine Power Core Reinforced Fission Core Reactor Light Particle Reactor Propulsion Armored Huge Wheel Treads Centrium Heavy Treads Leg Aluminum Leg Wheel Armored Huge Wheel Utility Huge Storage Unit Device Improved Cooling System Storage Huge Storage Unit Processor Advanced Terrain Scan Processor Hackware Improved Hacking Suite Protection Hardened Medium Armor Plating Weapon Gatling Laser Energy Gun Gatling Laser Energy Cannon Cooled Phase Cannon Ballistic Gun Improved KE Penetrator Ballistic Cannon Assault Cannon Launcher Grenade Launcher Special Weapon Field Lobotomy Kit Impact Weapon Power Maul Slashing Weapon Katana Build | -11 -10 -10 -9 -9 -9 -8 -8 -7 -6 -6 -6 -6 -6 -5 -4 -3 -2 -1 ------- Run | Scr Mat Min Mat Min Exi Min Mat Fac Fac Ext Cet Arc Hub Fac Fac Res Res Acc Slots Evolved 18 | . . . 2 . . . 2 2 2 . . . . 2 2 2 2 2 Power 1 | . . . . . . . . . . . . . . . . . 1 . Propulsion 4 | . . . 1 . . . . . 1 . . . . . 2 . . . Utility 10 | . . . 1 . . . 1 2 1 . . . . 1 . 2 1 1 Weapon 3 | . . . . . . . 1 . . . . . . 1 . . . 1 Parts Attached 333 | 2 14 . 37 1 4 5 30 50 20 21 14 7 11 27 31 24 19 16 Power 17 | . 2 . 3 . . . 2 1 . 2 . . . 1 1 . 3 2 Engine 10 | . 2 . 3 . . . 1 1 . 2 . . . . . . 1 . Core 3 | . . . . . . . 1 . . . . . . 1 1 . . . Reactor 4 | . . . . . . . . . . . . . . . . . 2 2 Propulsion 42 | 2 1 . 12 1 . 1 7 2 1 . 2 . . . 3 3 4 3 Treads 26 | 2 1 . 7 . . . 2 . . . 1 . . . 3 3 4 3 Leg . | . . . . . . . . . . . . . . . . . . . Wheel 16 | . . . 5 1 . 1 5 2 1 . 1 . . . . . . . Hover . | . . . . . . . . . . . . . . . . . . . Flight . | . . . . . . . . . . . . . . . . . . . Utility 147 | . 3 . 13 . 1 1 12 24 11 10 4 5 4 11 14 13 12 9 Device 73 | . 2 . 3 . . . 4 16 6 4 1 4 1 5 8 8 6 5 Storage 10 | . 1 . 3 . 1 . . 1 . 1 . . . 1 1 1 . . Processor 8 | . . . . . . . 2 2 1 . . . 1 . . 1 1 . Hackware 3 | . . . . . . . . . 1 . . 1 . . . . . 1 Protection 53 | . . . 7 . . 1 6 5 3 5 3 . 2 5 5 3 5 3 Artifact . | . . . . . . . . . . . . . . . . . . . Weapon 127 | . 8 . 9 . 3 3 9 23 8 9 8 2 7 15 13 8 . 2 Energy Gun 71 | . 4 . 4 . . 1 7 15 7 5 6 2 4 9 5 1 . 1 Energy Cannon 6 | . . . . . 1 . . . . . . . . . . 4 . 1 Ballistic Gun 16 | . 1 . 1 . 1 1 . . . . 1 . 2 3 5 1 . . Ballistic Cannon 4 | . . . 2 . 1 . . . . . . . . 1 . . . . Launcher 7 | . 3 . . . . . . 2 . . . . . . 1 1 . . Special Weapon 2 | . . . . . . 1 . . . 1 . . . . . . . . Impact Weapon 9 | . . . 2 . . . 2 5 . . . . . . . . . . Slashing Weapon 12 | . . . . . . . . 1 1 3 1 . 1 2 2 1 . . Piercing Weapon . | . . . . . . . . . . . . . . . . . . . Special Melee Weapon . | . . . . . . . . . . . . . . . . . . . Unidentified Prototypes 11 | . . . 1 . . . 1 . 1 1 4 . . 3 . . . . Corrupted Parts 1 | . . . . . . . . . . . . . . 1 . . . . System Corruption 5 | . . . . . . . . . . . . . . 5 . . . . Parts Lost 20 | . 1 . . . . 2 . . 1 . . . . 3 5 2 5 1 Power 2 | . . . . . . . . . . . . . . . . . 1 1 Propulsion 4 | . . . . . . 1 . . . . . . . . 1 . 2 . Utility 8 | . . . . . . . . . 1 . . . . 1 2 2 2 . Weapon 6 | . 1 . . . . 1 . . . . . . . 2 2 . . . Highest Loss Streak 3 | . 1 . . . . 2 . . 1 . . . . 2 3 1 3 1 Average Slot Usage (%) 91 | . 99 100 98 100 100 98 99 92 86 86 86 85 86 87 79 88 86 91 Engine 6 | . 14 14 10 11 11 11 9 7 6 6 6 6 6 2 . . . 2 Core 1 | . . . . . . . . . . . . . . 2 5 4 3 . Treads 9 | . 27 28 12 11 11 11 8 . . . . . . . 10 17 13 16 Wheel 9 | . . . 20 22 22 20 18 15 13 13 12 13 13 11 4 . . . Device 14 | . 13 14 6 11 11 7 15 19 19 17 14 17 17 10 8 10 15 11 Storage 8 | . 14 14 11 11 11 11 9 7 6 6 6 6 6 5 5 9 8 8 Processor 7 | . . . . . . . 8 7 6 6 6 6 8 11 10 13 14 16 Hackware 2 | . . . . . . . . . . 6 6 6 6 5 5 4 4 7 Protection 7 | . . . 14 11 11 14 2 9 13 8 11 8 6 11 10 7 4 5 Energy Gun 13 | . 18 28 11 . . 3 25 17 18 16 16 19 16 20 4 6 . . Energy Cannon 3 | . . . . . . . . . . . . . . . . 10 17 19 Ballistic Gun 1 | . . . 1 11 11 18 . . . . . . . 1 6 1 . . Ballistic Cannon 1 | . . . 7 11 11 . . . . . . . . . 3 . . . Naked Turns . | . . . . . . . . . . . . . . . . . . . Heaviest Build 183 | 14 34 34 153 65 65 71 71 120 117 124 125 121 124 153 160 166 181 183 Greatest Support 230 | 40 40 40 40 26 26 26 32 38 56 56 56 56 56 56 230 230 230 213 Greatest Overweight (x) 15 | . 1 . 15 3 2 4 2 3 2 2 4 2 2 2 2 . 1 . Average Overweight (x) 1 | . . . 3 2 2 2 2 2 1 1 1 2 1 2 . . . . Largest Inventory Capacity 30 | 8 15 15 30 20 20 20 20 25 25 25 25 25 25 25 25 25 25 25 Average Capacity 22 | 8 12 15 19 20 20 20 20 24 25 25 25 25 25 25 25 25 25 25 Most Carried 25 | 7 15 15 20 20 20 20 20 25 25 25 25 25 25 25 25 25 25 25 Average Carried 22 | 5 12 14 18 19 19 19 19 24 24 24 24 25 25 24 24 24 24 24 Final Capacity 25 | 8 15 15 20 20 20 20 20 25 25 25 25 25 25 25 25 25 25 25 Final Carried 25 | 6 15 15 20 20 20 18 20 25 25 25 25 25 25 25 24 25 25 25 Class Distribution -------------------- 22% | Mutant 19% | Scavenger-Skirmisher 14% | Scavenger-Mutant 9% | Assassin 5% | Skirmisher 5% | Tank 4% | Commander-Skirmisher 4% | Commander-Mutant 4% | Scavenger-Assassin 3% | Commander-Tank Dominant Class ---------------- Mutant | -10/Materials Mutant | -10/Mines Mutant | -9/Materials Mutant | -9/Mines Mutant | -9/Exiles Mutant | -8/Mines Scavenger-Skirmisher | -8/Materials Assassin | -7/Factory Tank | -6/Factory Skirmisher | -6/Extension Commander-Mutant | -6/Cetus Commander-Skirmisher | -6/Archives Commander-Skirmisher | -6/Hub_04(d) Commander-Mutant | -5/Factory Scavenger-Skirmisher | -4/Factory Scavenger-Skirmisher | -3/Research Scavenger-Mutant | -2/Research Scavenger-Mutant | -1/Access Resources | -11 -10 -10 -9 -9 -9 -8 -8 -7 -6 -6 -6 -6 -6 -5 -4 -3 -2 -1 ----------- Run | Scr Mat Min Mat Min Exi Min Mat Fac Fac Ext Cet Arc Hub Fac Fac Res Res Acc Matter Collected 5145 | 220 336 161 553 119 30 142 296 496 265 216 140 70 18 449 878 335 255 166 Remotely . | . . . . . . . . . . . . . . . . . . . Salvage Created 9389 | 85 426 163 426 142 . 163 458 893 567 312 170 52 257 594 1530 942 1413 796 Parts 360 | 3 19 14 18 7 . 11 29 30 13 9 2 5 10 17 53 36 59 25 Haulers Intercepted 3 | . 1 . 1 . . . 1 . . . . . . . . . . . Recyclers Shooed 21 | . 2 . 1 . . . 1 1 . 3 . . 1 3 3 3 3 . Parts Field Recycled . | . . . . . . . . . . . . . . . . . . . Retrieved Matter . | . . . . . . . . . . . . . . . . . . . Parts Self-Destructed . | . . . . . . . . . . . . . . . . . . . Prevented . | . . . . . . . . . . . . . . . . . . . Kills | -11 -10 -10 -9 -9 -9 -8 -8 -7 -6 -6 -6 -6 -6 -5 -4 -3 -2 -1 ------- Run | Scr Mat Min Mat Min Exi Min Mat Fac Fac Ext Cet Arc Hub Fac Fac Res Res Acc Combat Hostiles Destroyed 110 | . 8 3 8 2 . 1 2 19 6 3 3 . 3 1 18 10 14 9 Guns 55 | . . 2 6 1 . 1 2 16 6 3 2 . . 1 10 4 . 1 Cannons 27 | . . . 2 1 . . . . . . . . . . 5 2 11 6 AOE 16 | . 8 1 . . . . . 2 . . . . 1 . . 4 . . Classes Destroyed 16 | 2 5 1 2 . . 1 1 1 1 . . . . 1 . . 1 . Worker 12 | . . . . . . . 2 1 . 1 . . 3 2 . 1 2 . Builder 12 | . 4 . . . . . 1 1 . . . . . . 2 . 4 . Tunneler 9 | 1 . 2 . . . 2 3 . . . . . . 1 . . . . Hauler 3 | . 1 . 1 . . . 1 . . . . . . . . . . . Recycler 26 | 1 2 1 1 1 . 1 2 3 2 1 . . . 3 2 3 2 1 Mechanic 4 | . 1 . . . . . 1 1 1 . . . . . . . . . Operator 4 | . . . . . . . . . 1 . . 2 1 . . . . . Watcher 13 | . 3 . 3 . . . 2 2 1 . . . 1 . . . 1 . Swarmer 18 | . . 3 3 . . . . 8 . . . . . . . 4 . . Grunt 37 | . 8 . 3 2 . . 1 7 4 1 2 . 3 . 3 . 3 . Brawler 3 | . . . . . . . . . . . . . . 1 2 . . . Duelist 5 | . . . 1 . . . . . 1 . . . . . 3 . . . Sentry 12 | . . . 1 . . . . . . 1 . . . . 2 2 3 3 Specialist 2 | . . . . . . . . . . . . . . . . . 2 . Hunter 3 | . . . . . . 1 1 . . 1 . . . . . . . . Programmer 29 | . . . . . . . . 4 1 . . . . . 8 4 6 6 Cetus Guard 1 | . . . . . . . . . . . 1 . . . . . . . Enhanced Grunt 2 | . . . . . . . . . . . . . . 1 1 . . . Best Kill Streak 8 | 2 4 3 6 2 . 2 3 4 4 2 1 2 8 2 5 5 7 4 Combat Bots Only 5 | . 2 3 4 2 . 1 1 4 4 1 1 . 3 1 4 4 5 3 Max Kills in Single Turn 5 | 1 2 1 1 1 . 1 2 1 1 1 1 1 5 2 2 3 2 1 Gunslinging . | . . . . . . . . . . . . . . . . . . . Exploded 3 | . 2 1 . . . . . 1 . . . . 1 . . 3 . . Melee . | . . . . . . . . . . . . . . . . . . . Uniques/NPCs Destroyed . | . . . . . . . . . . . . . . . . . . . Combat | -11 -10 -10 -9 -9 -9 -8 -8 -7 -6 -6 -6 -6 -6 -5 -4 -3 -2 -1 -------- Run | Scr Mat Min Mat Min Exi Min Mat Fac Fac Ext Cet Arc Hub Fac Fac Res Res Acc Damage Taken 9450 | . 227 75 252 104 . 452 176 818 378 133 160 . 91 348 2007 543 2872 814 Core 751 | . 47 20 59 24 . 10 11 62 20 . . . . . 125 53 266 54 Absorbed by Shields 147 | . . . . . . . . . . 71 76 . . . . . . . Core Remaining (%) 90 | 100 . 73 . . . 76 98 91 . . . . 97 100 89 95 81 96 Volleys Fired 505 | 4 36 8 26 6 . 18 16 40 23 16 11 3 6 42 62 27 90 71 Largest 5 | 2 2 2 2 2 . 2 3 3 3 3 3 3 3 4 3 4 4 5 Hottest 480 | 90 90 90 101 67 . 92 240 240 240 240 240 240 310 328 244 279 480 305 Shots Fired 1199 | 8 53 16 52 12 . 36 47 99 67 28 27 9 14 75 157 83 254 162 Gun 643 | 8 28 16 25 6 . 36 47 95 67 26 27 9 14 71 119 40 . 9 Cannon 522 | . . . 27 6 . . . . . . . . . 4 37 41 254 153 Launcher 32 | . 25 . . . . . . 4 . . . . . . 1 2 . . Special 2 | . . . . . . . . . . 2 . . . . . . . . Kinetic 186 | . . . 34 12 . 34 2 . . . . . 6 17 71 10 . . Thermal 919 | 4 . . 6 . . 2 45 95 67 26 27 9 8 58 85 71 254 162 Explosive 31 | . 25 . . . . . . 4 . . . . . . . 2 . . Electromagnetic 61 | 4 28 16 12 . . . . . . . . . . . 1 . . . Robot Hit Streak 35 | 2 5 3 8 6 . 27 28 19 12 24 11 11 3 7 11 14 30 35 Robot Miss Streak 7 | 1 5 2 3 1 . 1 4 4 4 6 6 5 3 5 3 3 7 2 Penetration Max 1 | . . . . . . . . . . . . . . 1 1 . . . Secondary Targets 4 | . . . . . . . . 1 . . 1 . . 1 1 . . . Max Gunslinging Chain 1 | . . . . . . . . 1 . . 1 . . 1 1 . . . Shots Hit Robots 704 | 4 27 9 33 8 . 30 30 91 65 22 23 8 6 38 98 47 103 62 Core Hits 424 | 3 33 6 13 3 . 6 27 62 46 19 23 10 16 32 41 28 36 20 Critical Kills 7 | . . . . . . . . . . . . . . . 3 . 2 2 Critical Parts Destroyed 5 | . . . . . . . . . . . . . . 1 3 1 . . Critical Strikes 23 | . . . 1 . . . . . . . . . . 1 16 1 2 2 Burn 4 | . . . 1 . . . . . . . . . . . 3 . . . Meltdown 4 | . . . . . . . . . . . . . . . . . 2 2 Destroy 9 | . . . . . . . . . . . . . . 1 7 1 . . Blast 6 | . . . . . . . . . . . . . . . 6 . . . Melee Attacks 83 | . . . 5 . . . 2 42 8 4 4 . 5 4 8 1 . . Impact 40 | . . . 5 . . . 2 33 . . . . . . . . . . Slashing 43 | . . . . . . . . 9 8 4 4 . 5 4 8 1 . . Piercing . | . . . . . . . . . . . . . . . . . . . Sneak Attacks 4 | . . . 1 . . . . 2 . 1 . . . . . . . . Combat Hostiles . | . . . . . . . . . . . . . . . . . . . Follow-up Attacks . | . . . . . . . . . . . . . . . . . . . Damage Inflicted 23726 | 52 1543 245 740 162 . 353 526 2100 1331 705 553 178 1210 1118 3817 1928 4692 2473 Guns 10103 | 52 277 131 240 62 . 353 496 1816 1331 493 553 178 111 877 2293 696 . 144 Cannons 9998 | . . . 405 100 . . . . . . . . . 241 1362 900 4661 2329 Explosions 3074 | . 1266 114 . . . . 30 100 . . . . 1099 . 133 332 . . Melee 516 | . . . 91 . . . . 184 . 212 . . . . 29 . . . Ramming 35 | . . . 4 . . . . . . . . . . . . . 31 . Kinetic 3651 | . . . 478 162 . 334 14 . . . . . . 541 1995 127 . . Thermal 16059 | 25 66 114 31 . . 19 482 1816 1331 493 553 178 111 577 1660 1469 4661 2473 Explosive 1662 | . 1200 . . . . . 30 100 . . . . . . . 332 . . Electromagnetic 1803 | 27 277 131 136 . . . . . . . . . 1099 . 133 . . . Impact 275 | . . . 91 . . . . 184 . . . . . . . . . . Slashing 241 | . . . . . . . . . . 212 . . . . 29 . . . Piercing . | . . . . . . . . . . . . . . . . . . . Highest Corruption 10 | . . . . 1 1 1 . 1 . 1 1 1 2 5 7 5 10 8 Average Corruption 2 | . . . . 1 1 1 . 1 . 1 1 1 1 5 5 3 8 2 Corruption Purged 1 | . . . . . . . . . . . . 1 . . . . . . Effects 114 | . . . . 1 3 3 . 11 . . 2 . 1 . 25 14 43 11 Message Errors 32 | . . . . . 1 1 . 7 . . 1 . 1 . 7 3 6 5 Matter Fused 20 | . . . . . . . . . . . . . . . 2 3 14 1 Heat Flow Errors 11 | . . . . . . . . . . . . . . . 4 1 3 3 Energy Discharges 21 | . . . . . . 1 . 2 . . . . . . 7 2 8 1 Parts Rejected 2 | . . . . . . . . . . . . . . . 1 . 1 . Data Loss (minor) 14 | . . . . 1 2 1 . 2 . . 1 . . . 3 1 2 1 Data Loss (major) 2 | . . . . . . . . . . . . . . . . . 2 . Misfires 6 | . . . . . . . . . . . . . . . . 3 3 . Weapon Failures 6 | . . . . . . . . . . . . . . . 1 1 4 . Overload Shots 16 | . . . . . . . . . 1 3 1 . 1 . . . 7 3 Effects 1 | . . . . . . . . . . . . . . . . . 1 . Heat Surge 1 | . . . . . . . . . . . . . . . . . 1 . Overflow Damage 1164 | . 17 . 29 . . . . 134 . 134 . . 84 103 160 57 331 115 Projectiles 758 | . . . . . . . . . . . . . . 103 160 49 331 115 Explosions 109 | . 17 . . . . . . . . . . . 84 . . 8 . . Melee 297 | . . . 29 . . . . 134 . 134 . . . . . . . . Knockbacks 13 | . . . 2 1 . . . . . . . . . 3 7 . . . Impact 1 | . . . 1 . . . . . . . . . . . . . . . Kinetic 11 | . . . 1 1 . . . . . . . . . 2 7 . . . Secondary 1 | . . . . . . . . . . . . . . 1 . . . . Self-Inflicted Damage 215 | . . 31 2 . . . 108 . . . . . 70 . 4 . . . Shots 5 | . . 2 . . . . 1 . . . . . 1 . 1 . . . Rammed 1 | . . . 1 . . . . . . . . . . . . . . . Targets Rammed 2 | . . . 1 . . . . . . . . . . . . . 1 . Kicked . | . . . . . . . . . . . . . . . . . . . Crushed 1 | . . . . . . . . . . . . . . . . . 1 . Highest Temperature 450 | 100 108 111 335 120 . 108 240 239 93 45 92 33 159 416 450 192 192 200 Average Temperature 70 | 51 35 43 74 52 . 48 77 83 28 15 24 22 48 159 94 118 32 68 Received Heat Transfer 1093 | . 126 . 117 45 . . . . 162 39 43 . 12 . 252 18 225 54 Effects 7 | . . . 2 . . . . . . . . . . 3 2 . . . Shutdowns 2 | . . . 1 . . . . . . . . . . . 1 . . . Interference 3 | . . . . . . . . . . . . . . 3 . . . . Short Circuit 2 | . . . 1 . . . . . . . . . . . 1 . . . Siege Activations . | . . . . . . . . . . . . . . . . . . . Robots Corrupted 3 | . . . . . . . . . . . . . 3 . . . . . Combat Hostiles 2 | . . . . . . . . . . . . . 2 . . . . . Parts Fried 10 | . 3 . 1 . . . . 4 . 1 . . 1 . . . . . Impact Corruptions 5 | . . . 1 . . . . 3 . . . . . 1 . . . . Robots Melted 12 | . . . . . . . . 1 . 1 1 . . . 3 . 4 2 Combat Hostiles 10 | . . . . . . . . 1 . . 1 . . . 3 . 3 2 Parts Melted 68 | 1 . . . . . . 1 8 13 2 1 1 . 1 5 8 9 18 Heat Transferred 23703 | 74 100 150 148 . . 37 1005 3762 2975 1100 1224 400 250 1178 3017 1719 4270 2294 Parts Sabotaged . | . . . . . . . . . . . . . . . . . . . Parts Stolen . | . . . . . . . . . . . . . . . . . . . Parts Stripped . | . . . . . . . . . . . . . . . . . . . Power Chain Reactions 3 | . 1 2 . . . . . . . . . . . . . . . . Missiles Intercepted . | . . . . . . . . . . . . . . . . . . . Alert | -11 -10 -10 -9 -9 -9 -8 -8 -7 -6 -6 -6 -6 -6 -5 -4 -3 -2 -1 ------- Run | Scr Mat Min Mat Min Exi Min Mat Fac Fac Ext Cet Arc Hub Fac Fac Res Res Acc Peak Influence 880 | 10 205 101 240 158 . 30 91 247 228 239 880 518 760 773 613 459 550 410 Initial 378 | . 6 1 1 88 . . 11 20 105 1 133 337 58 372 378 245 3 326 Average 199 | 8 74 47 108 105 . 16 36 101 91 39 588 402 210 410 437 315 181 326 Maximum Alert Level 3 | . 1 . 1 . . . . 1 1 1 3 2 3 3 2 2 2 2 Low Security (%) 58 | 100 96 100 84 100 . 100 100 93 89 92 6 4 8 . . 10 65 . Level 1 24 | . 3 . 15 . . . . 6 10 7 9 48 89 34 35 58 16 92 Level 2 16 | . . . . . . . . . . . 61 46 . 58 64 30 17 7 Level 3 1 | . . . . . . . . . . . 22 . 1 7 . . . . Level 4 . | . . . . . . . . . . . . . . . . . . . Level 5 . | . . . . . . . . . . . . . . . . . . . High Security . | . . . . . . . . . . . . . . . . . . . Max Security . | . . . . . . . . . . . . . . . . . . . Squads Dispatched 45 | . 1 1 3 . . . 2 8 2 1 . . 2 5 6 2 10 2 Investigation 4 | . . 1 . . . . 1 . . 1 . . 1 . . . . . Extermination 20 | . . . . . . . . 7 1 . . . . 1 4 2 3 2 Reinforcement 15 | . 1 . 3 . . . 1 1 1 . . . 1 3 . . 4 . Assault 3 | . . . . . . . . . . . . . . 1 2 . . . Garrison 3 | . . . . . . . . . . . . . . . . . 3 . Intercept . | . . . . . . . . . . . . . . . . . . . Construction Impeded 3 | . . . . . . . 1 . . . . . . 1 . . 1 . Haulers Reinforced . | . . . . . . . . . . . . . . . . . . . Active Scanning Responses . | . . . . . . . . . . . . . . . . . . . Cargo Convoy Interrupts . | . . . . . . . . . . . . . . . . . . . Stealth | -11 -10 -10 -9 -9 -9 -8 -8 -7 -6 -6 -6 -6 -6 -5 -4 -3 -2 -1 --------- Run | Scr Mat Min Mat Min Exi Min Mat Fac Fac Ext Cet Arc Hub Fac Fac Res Res Acc Distress Signals 15 | . 1 . 4 . . . . . . 2 1 . 2 . 1 . 2 2 Communications Jammed . | . . . . . . . . . . . . . . . . . . . Distress Signals . | . . . . . . . . . . . . . . . . . . . Times Spotted 221 | . 15 2 25 4 . 1 5 29 8 6 19 3 4 16 28 10 30 16 Peak Tracking Total 7 | . 3 2 6 4 . 1 1 4 3 1 5 1 4 6 6 4 7 6 Tactical Retreats 14 | . . . . 1 . . . 3 . . . . 1 1 . . 6 2 Traps | -11 -10 -10 -9 -9 -9 -8 -8 -7 -6 -6 -6 -6 -6 -5 -4 -3 -2 -1 ------- Run | Scr Mat Min Mat Min Exi Min Mat Fac Fac Ext Cet Arc Hub Fac Fac Res Res Acc Traps Triggered 18 | . 2 . 3 1 . . 1 6 . 1 . . 2 1 1 . . . Indirectly . | . . . . . . . . . . . . . . . . . . . Trap Hack Attempts . | . . . . . . . . . . . . . . . . . . . Triggered . | . . . . . . . . . . . . . . . . . . . Disarmed . | . . . . . . . . . . . . . . . . . . . Reprogrammed . | . . . . . . . . . . . . . . . . . . . Reused . | . . . . . . . . . . . . . . . . . . . Traps Extracted . | . . . . . . . . . . . . . . . . . . . Installed . | . . . . . . . . . . . . . . . . . . . Triggered . | . . . . . . . . . . . . . . . . . . . Machines | -11 -10 -10 -9 -9 -9 -8 -8 -7 -6 -6 -6 -6 -6 -5 -4 -3 -2 -1 ---------- Run | Scr Mat Min Mat Min Exi Min Mat Fac Fac Ext Cet Arc Hub Fac Fac Res Res Acc Machines Disabled 32 | . . 1 2 . . . 1 2 . 2 2 . 13 4 3 . . 2 Max in Single Turn 12 | . . 1 2 . . . 1 1 . 1 1 . 12 . 1 . . 1 Garrison Access 5 | . . . . . . . . . . . . . . 1 . 1 . 3 Network Hub 1 | . . . . . . . . . . . . . 1 . . . . . Machines Sabotaged . | . . . . . . . . . . . . . . . . . . . Garrisons Compromised 1 | . . . . . . . . 1 . . . . . . . . . . Overloaded Fab Kills . | . . . . . . . . . . . . . . . . . . . Hacking | -11 -10 -10 -9 -9 -9 -8 -8 -7 -6 -6 -6 -6 -6 -5 -4 -3 -2 -1 --------- Run | Scr Mat Min Mat Min Exi Min Mat Fac Fac Ext Cet Arc Hub Fac Fac Res Res Acc Machines Accessed 77 | . 5 1 4 1 2 . 4 17 4 1 4 1 5 8 5 4 4 7 Terminals 46 | . 5 . 3 . . . 4 11 1 1 4 . 5 2 3 2 3 2 Fabricators 7 | . . . . . . . . 2 1 . . . . 2 1 . . 1 Repair Stations 5 | . . . . . . . . 1 1 . . . . 2 . . . 1 Recycling Units 6 | . . . 1 . . . . 2 1 . . . . 1 . . 1 . Scanalyzers 3 | . . . . . . . . 1 . . . . . . 1 1 . . Garrison Access 5 | . . . . . . . . . . . . . . 1 . 1 . 3 Total Hacks 204 | . 14 1 16 1 2 . 13 32 10 4 8 2 10 31 16 15 15 14 Successful 92 | . 8 1 8 1 2 . 5 14 5 . 5 2 . 15 4 9 6 7 Failed 112 | . 6 . 8 . . . 8 18 5 4 3 . 10 16 12 6 9 7 Catastrophic 21 | . . . 2 . . . 1 5 2 . 1 . 5 1 1 . 1 2 Database Lockouts . | . . . . . . . . . . . . . . . . . . . Manual 118 | . 12 . 13 . 1 . 12 18 6 . 2 . 10 15 13 9 3 4 Terminals 131 | . 14 . 8 . . . 13 22 1 4 8 . 10 13 13 10 12 3 Fabricators 15 | . . . . . . . . 4 3 . . . . 4 2 . . 2 Repair Stations 14 | . . . . . . . . 1 1 . . . . 9 . . . 3 Recycling Units 24 | . . . 8 . . . . 4 5 . . . . 4 . . 3 . Scanalyzers 5 | . . . . . . . . 1 . . . . . . 1 3 . . Garrison Access 9 | . . . . . . . . . . . . . . 1 . 2 . 6 Terminal Hacks 39 | . 4 1 1 1 2 . 2 7 1 . 5 2 . 2 2 4 4 1 Record 8 | . . . . . 1 . . . . . 5 2 . . . . . . Robot Analysis 5 | . 3 . 1 . . . . 1 . . . . . . . . . . Open Door 3 | . . 1 . 1 . . . . 1 . . . . . . . . . Level Access Points 3 | . . . . . . . . 1 . . . . . 1 . . 1 . Branch Access Points 6 | . . . . . . . 1 1 . . . . . 1 1 1 1 . Terminal Index 2 | . . . . . . . . 1 . . . . . . . . 1 . Alert Level 1 | . . . . . . . . . . . . . . . . 1 . . Unreport Threat 5 | . . . . . . . . 1 . . . . . . 1 2 1 . Locate Traps 2 | . 1 . . . . . . 1 . . . . . . . . . . Recall Extermination 1 | . . . . . . . . 1 . . . . . . . . . . Hauler Manifests 1 | . . . . . . . 1 . . . . . . . . . . . Zone Layout 1 | . . . . . . . . . . . . . . . . . . 1 EX-Prototype ID Bank 1 | . . . . . 1 . . . . . . . . . . . . . Fabricator Hacks 4 | . . . . . . . . 2 . . . . . 1 . . . 1 Network Status 2 | . . . . . . . . 1 . . . . . . . . . 1 Build 2 | . . . . . . . . 1 . . . . . 1 . . . . Repair Station Hacks 8 | . . . . . . . . . . . . . . 6 . . . 2 Scan Component 4 | . . . . . . . . . . . . . . 3 . . . 1 Repair 4 | . . . . . . . . . . . . . . 3 . . . 1 Recycling Unit Hacks 7 | . . . 1 . . . . 2 2 . . . . 1 . . 1 . Retrieve Components 7 | . . . 1 . . . . 2 2 . . . . 1 . . 1 . Scanalyzer 4 | . . . . . . . . 1 . . . . . . 1 2 . . Insert Component 4 | . . . . . . . . 1 . . . . . . 1 2 . . Garrison Access Hacks 5 | . . . . . . . . . . . . . . 1 . 1 . 3 Seal Access 5 | . . . . . . . . . . . . . . 1 . 1 . 3 Unauthorized Hacks 25 | . 4 . 6 . . . 3 2 2 . . . . 4 1 2 1 . Terminals 18 | . 4 . 3 . . . 3 2 . . . . . 2 1 2 1 . Track 4 | . 2 . 1 . . . . . . . . . . . . 1 . . Assimilate 1 | . . . . . . . 1 . . . . . . . . . . . Botnet 11 | . 1 . 1 . . . 2 2 . . . . . 2 1 1 1 . Operators 2 | . 1 . 1 . . . . . . . . . . . . . . . Fabricators . | . . . . . . . . . . . . . . . . . . . Repair Stations . | . . . . . . . . . . . . . . . . . . . Recycling Units 7 | . . . 3 . . . . . 2 . . . . 2 . . . . Reject 1 | . . . 1 . . . . . . . . . . . . . . . Recyclers 3 | . . . 1 . . . . . 1 . . . . 1 . . . . Mask 3 | . . . 1 . . . . . 1 . . . . 1 . . . . Scanalyzers . | . . . . . . . . . . . . . . . . . . . Garrison Access . | . . . . . . . . . . . . . . . . . . . Data Cores Recovered . | . . . . . . . . . . . . . . . . . . . Used . | . . . . . . . . . . . . . . . . . . . Hacking Detections 61 | . 5 . 4 . . . 4 15 3 1 3 . 5 6 4 3 4 4 Full Trace Events 2 | . . . . . . . . . . 1 . . 1 . . . . . Feedback Events 2 | . . . . . . . . . . 1 . . 1 . . . . . Corruption 2 | . . . . . . . . . . 1 . . 1 . . . . . Feedback Blocked . | . . . . . . . . . . . . . . . . . . . Robot Schematics Acquired . | . . . . . . . . . . . . . . . . . . . Robots Built 5 | . . . . . . . . 3 . . . . . 2 . . . . Authchips . | . . . . . . . . . . . . . . . . . . . Time 200 | . . . . . . . . 116 . . . . . 84 . . . . Total Robot Build Rating 21 | . . . . . . . . 9 . . . . . 12 . . . . Part Schematics Acquired . | . . . . . . . . . . . . . . . . . . . Parts Built . | . . . . . . . . . . . . . . . . . . . Authchips . | . . . . . . . . . . . . . . . . . . . Time . | . . . . . . . . . . . . . . . . . . . Total Part Build Rating . | . . . . . . . . . . . . . . . . . . . Parts Repaired 4 | . . . . . . . . . . . . . . 3 . . . 1 Time 264 | . . . . . . . . . . . . . . 228 . . . 36 Parts Recycled . | . . . . . . . . . . . . . . . . . . . Recycled Matter . | . . . . . . . . . . . . . . . . . . . Retrieved Matter . | . . . . . . . . . . . . . . . . . . . Retrieved Components 23 | . . . . . . . . 4 . . . . . 9 . . 10 . Parts Scanalyzed . | . . . . . . . . . . . . . . . . . . . Part Schematics Acquired . | . . . . . . . . . . . . . . . . . . . Parts Damaged . | . . . . . . . . . . . . . . . . . . . Bothacking | -11 -10 -10 -9 -9 -9 -8 -8 -7 -6 -6 -6 -6 -6 -5 -4 -3 -2 -1 ------------ Run | Scr Mat Min Mat Min Exi Min Mat Fac Fac Ext Cet Arc Hub Fac Fac Res Res Acc Used RIF Installer . | . . . . . . . . . . . . . . . . . . . Robots Hacked . | . . . . . . . . . . . . . . . . . . . Non-combat . | . . . . . . . . . . . . . . . . . . . Combat . | . . . . . . . . . . . . . . . . . . . Robot Hacks Applied . | . . . . . . . . . . . . . . . . . . . Relay Couplers Released . | . . . . . . . . . . . . . . . . . . . Fabnet Peak Effective % . | . . . . . . . . . . . . . . . . . . . Robots Rewired 4 | . . . . . . . . . . 3 . . . 1 . . . . Allies Hacked . | . . . . . . . . . . . . . . . . . . . Hacks Repelled . | . . . . . . . . . . . . . . . . . . . Allies | -11 -10 -10 -9 -9 -9 -8 -8 -7 -6 -6 -6 -6 -6 -5 -4 -3 -2 -1 -------- Run | Scr Mat Min Mat Min Exi Min Mat Fac Fac Ext Cet Arc Hub Fac Fac Res Res Acc Total Allies 23 | . . 3 . . . . . 6 . 6 5 . . 3 . . . . Largest Group 10 | . . 3 3 . . . . 5 . 6 10 9 7 8 4 . . . Highest-Rated Group 843 | . . 40 40 . . . . 125 . 405 843 823 628 622 320 . . . Highest-Rated Ally 159 | . . 16 16 . . . . 31 . 159 159 152 95 95 95 . . . Total Orders 24 | . . 2 . . . . . 2 . 5 6 6 3 . . . . . STAY 13 | . . 1 . . . . . 1 . 3 4 2 2 . . . . . ROAM 1 | . . . . . . . . . . . . 1 . . . . . . FOLLOW 10 | . . 1 . . . . . 1 . 2 2 3 1 . . . . . Ally Attacks 322 | . . . 29 . . . . 55 . 25 73 14 7 103 16 . . . Total Damage 10582 | . . . 352 . . . . 634 . 1015 3403 712 279 3647 540 . . . Kills 69 | . . . 8 . . . . 5 . 11 21 5 4 13 2 . . . Allies Corrupted . | . . . . . . . . . . . . . . . . . . . Allies Melted . | . . . . . . . . . . . . . . . . . . . Field Lobotomies 2 | . . . . . . . . . . 2 . . . . . . . . Intel | -11 -10 -10 -9 -9 -9 -8 -8 -7 -6 -6 -6 -6 -6 -5 -4 -3 -2 -1 ------- Run | Scr Mat Min Mat Min Exi Min Mat Fac Fac Ext Cet Arc Hub Fac Fac Res Res Acc Robot Analysis Total 5 | . 3 . 1 . . . . 1 . . . . . . . . . . Derelict Logs Recovered 2 | . . 2 . . . . . . . . . . . . . . . . Drone Launches . | . . . . . . . . . . . . . . . . . . . Drone Recoveries . | . . . . . . . . . . . . . . . . . . . Exploration | -11 -10 -10 -9 -9 -9 -8 -8 -7 -6 -6 -6 -6 -6 -5 -4 -3 -2 -1 ------------- Run | Scr Mat Min Mat Min Exi Min Mat Fac Fac Ext Cet Arc Hub Fac Fac Res Res Acc Turns Passed 18940 | 37 1272 875 1080 160 441 290 1338 2937 887 1128 659 839 388 1133 1294 1116 1671 1395 Spaces Moved 10401 | 14 711 529 626 105 359 144 652 1779 451 687 428 365 264 676 565 579 787 680 Core . | . . . . . . . . . . . . . . . . . . . Treads 3682 | 9 711 529 24 . . . . . . . . . . . 363 579 787 680 Legs 5 | 5 . . . . . . . . . . . . . . . . . . Wheels 6714 | . . . 602 105 359 144 652 1779 451 687 428 365 264 676 202 . . . Hover . | . . . . . . . . . . . . . . . . . . . Flight . | . . . . . . . . . . . . . . . . . . . Fastest Speed 105 | 120 160 160 105 120 120 120 120 120 115 115 115 130 115 130 130 160 160 161 Average Speed 138 | 145 160 160 136 123 120 124 120 125 123 115 129 130 124 130 161 160 165 164 Slowest Speed 305 | 160 240 160 305 125 120 160 130 135 130 130 160 130 130 130 240 160 240 165 Overloaded Moves . | . . . . . . . . . . . . . . . . . . . Propulsion Burnouts . | . . . . . . . . . . . . . . . . . . . Robots Hopped 5 | . . . 5 . . . . . . . . . . . . . . . Cave-ins Triggered . | . . . . . . . . . . . . . . . . . . . Exploration Rate (%) 42 | 2 98 99 54 32 73 23 29 48 7 65 74 92 26 18 13 9 29 17 Regions Visited 18 Branch Regions 8 Pre-discovered Areas 2 | . . 1 . . 1 . . . . . . . . . . . . . Known Exits Taken 3 | . . . . . . . . 1 . . . . . 1 . . 1 . Unknown Exits Taken 15 | 1 1 1 1 1 1 1 1 . 1 1 1 1 1 . 1 1 . . Scrap Searched 2 | . . 1 . . . 1 . . . . . . . . . . . . Spaces Dug 391 | . . . 3 . . . 2 39 8 1 . . 175 20 17 6 73 47 Terrain Destroyed 706 | . 111 9 9 2 . . 31 44 8 3 . . 175 29 45 34 129 77 Melee 69 | . . . 3 . . . 2 39 8 1 . . 4 4 7 1 . . Projectile 303 | . . . 6 2 . . . . . 2 . . 5 25 38 19 129 77 AOE 334 | . 111 9 . . . . 29 5 . . . . 166 . . 14 . . Terrain Rammed . | . . . . . . . . . . . . . . . . . . . Walls Destroyed . | . . . . . . . . . . . . . . . . . . . Machines Disabled . | . . . . . . . . . . . . . . . . . . . Actions | -11 -10 -10 -9 -9 -9 -8 -8 -7 -6 -6 -6 -6 -6 -5 -4 -3 -2 -1 --------- Run | Scr Mat Min Mat Min Exi Min Mat Fac Fac Ext Cet Arc Hub Fac Fac Res Res Acc Total 13786 | 25 797 544 803 125 370 217 1166 2328 706 989 502 720 298 861 789 717 980 849 Wait 2021 | . 4 . 61 9 . 49 435 330 186 213 27 340 2 81 102 58 65 59 Move 10372 | 13 710 528 615 104 358 143 651 1778 450 686 427 364 263 675 564 578 786 679 Hop 5 | . . . 5 . . . . . . . . . . . . . . . Pick Up 152 | 2 17 4 19 2 2 1 8 16 7 9 6 1 . 9 14 12 12 11 Fast Attach 83 | . 9 . 14 . 3 . 12 7 3 2 4 3 3 10 3 5 3 2 Attach 50 | 2 1 . 4 . . 2 2 3 4 . 1 . . 5 9 5 9 3 Detach 29 | 2 3 . 6 . . . 2 3 2 . 1 . 1 4 1 4 . . Swap 201 | . 4 . 19 1 1 3 16 40 13 19 9 4 8 13 19 14 7 11 Drop 202 | 2 13 4 28 3 6 1 22 27 10 14 12 5 2 13 7 13 7 13 Fire 505 | 4 36 8 26 6 . 18 16 40 23 16 11 3 6 42 62 27 90 71 Melee 83 | . . . 5 . . . 2 42 8 4 4 . 5 4 8 1 . . Ram 1 | . . . 1 . . . . . . . . . . . . . . . Kick . | . . . . . . . . . . . . . . . . . . . Crush 1 | . . . . . . . . . . . . . . . . . 1 . Escape Stasis 56 | . . . . . . . . 40 . 8 . . 8 . . . . . Rewire 25 | . . . . . . . . 2 . 18 . . . 5 . . . . Trap . | . . . . . . . . . . . . . . . . . . . Miscellaneous . | . . . . . . . . . . . . . . . . . . . Route ------- -11/Scrapyard -10/Materials (discovered 4 exits: *Mat x3 / *Min) -10/Mines (discovered 2 exits: *Mat x2) -9/Materials (discovered 3 exits: *Mat / *Min x2) -9/Mines (discovered 2 exits: *Mat / *Exi) -9/Exiles -8/Mines -8/Materials (discovered 3 exits: *Fac / Sto x2) -7/Factory (discovered 6 exits: *Fac x4 / *Low x2) -6/Factory -6/Extension (discovered 3 exits: *Fac x2 / *Cet) -6/Cetus -6/Archives (discovered 3 exits: *Fac / *Hub x2) -6/Hub_04(d) -5/Factory (discovered 6 exits: *Fac x4 / *Upp x2) -4/Factory (discovered 3 exits: *Res / Upp x2) -3/Research (discovered 4 exits: *Res / Arm / *Tes x2) -2/Research (discovered 5 exits: *Acc x3 / Qua x2) -1/Access To Epsilon Eridani History --------- Turn | Location | Event 14 | -11/Scrapyard | Discovered new exit (range 3) 38 | -11/Scrapyard | Entered Materials 253 | -10/Materials | Discovered new exit (range 16) 313 | -10/Materials | Build established: Mutant 521 | -10/Materials | Discovered new exit (range 16) 754 | -10/Materials | Discovered new exit (range 7) 1011 | -10/Materials | Discovered new exit (range 6) 1310 | -10/Materials | Entered Mines 1409 | -10/Mines | Discovered new exit (range 14) 1585 | -10/Mines | Found a hidden stash of uninstalled traps 1596 | -10/Mines | Learned Materials interactive machine intel 1636 | -10/Mines | Discovered new exit (range 4) 1646 | -10/Mines | Assisted by bots powering up and referring to "LRC-V3" 1683 | -10/Mines | Learned location of Storage (-8) 1762 | -10/Mines | Met a Derelict shopkeep closing up shop 2185 | -10/Mines | Entered Materials 2185 | -9/Materials | Accompanied by 3 allies 2185 | -9/Materials | Evolved 2 slots: Propulsion x1, Utility x1 2186 | -9/Materials | Loaded intel: 18 interactive machine locations 2266 | -9/Materials | Discovered new exit (range 6) 2773 | -9/Materials | Discovered new exit (range 12) 3206 | -9/Materials | Discovered new exit (range 14) 3265 | -9/Materials | Entered Mines 3308 | -9/Mines | Met a Derelict who couldn't figure out how to use a Trap Extractor 3390 | -9/Mines | Discovered new exit (range 6) 3412 | -9/Mines | Discovered new exit (range 6) 3420 | -9/Mines | Deemed a non-threat by the Exiles lab entrance 3425 | -9/Mines | Entered Exiles 3455 | -9/Exiles | Met 8R-AWN 3475 | -9/Exiles | Met EX-HEX 3511 | -9/Exiles | Met EX-BIN 3524 | -9/Exiles | Aligned with FarCom system 3525 | -9/Exiles | Given EX-Vault access code 3554 | -9/Exiles | Opened EX-Vault 3563 | -9/Exiles | Found Firepult 3576 | -9/Exiles | Found Field Lobotomy Kit 3600 | -9/Exiles | Warned to stay clear of 0b10 Research branches 3638 | -9/Exiles | Met EX-DEC 3644 | -9/Exiles | Learned location of Zion (-7) 3851 | -9/Exiles | Discovered new exit (range 14) 3866 | -9/Exiles | Left Exiles lab with Field Lobotomy Kit 3866 | -9/Exiles | Entered Mines 4127 | -8/Mines | Discovered new exit (range 15) 4156 | -8/Mines | Entered Materials 4156 | -8/Materials | Evolved 2 slots: Utility x1, Weapon x1 4430 | -8/Materials | Discovered new exit (range 15) 4538 | -8/Materials | Build established: Scavenger-Skirmisher 5386 | -8/Materials | Identified exit to Storage 5494 | -8/Materials | Entered Factory 5494 | -7/Factory | Evolved 2 slots: Utility x2 5798 | -7/Factory | Build established: Scavenger-Assassin 6649 | -7/Factory | Discovered new exit (range 15) 7052 | -7/Factory | Identified exit to Lower Caves 7094 | -7/Factory | Build established: Assassin 7309 | -7/Factory | Fabricated G-47 Trooper? 7412 | -7/Factory | P-60 Hacker assimilated allied Trooper 4c 7540 | -7/Factory | Allied Derelicts emerged from ambush trap array 7626 | -7/Factory | Identified exit to Factory 8431 | -7/Factory | Entered another Factory area 8431 | -6/Factory | Evolved 2 slots: Propulsion x1, Utility x1 9032 | -6/Factory | Discovered new exit (range 13) 9318 | -6/Factory | Entered Extension 9341 | -6/Extension | Build established: Tank 9967 | -6/Extension | Rescued A7 10028 | -6/Extension | Spotted B-75 Beast 10034 | -6/Extension | Assimilated B-75 Beast with FLK Orb 10040 | -6/Extension | Spotted B-75 Beast 10041 | -6/Extension | Assimilated B-75 Beast with FLK Orb 10076 | -6/Extension | Discovered new exit (range 15) 10168 | -6/Extension | Disrupted transfer network 10350 | -6/Extension | Discovered new exit (range 16) 10351 | -6/Extension | Discovered new exit (range 15) 10446 | -6/Extension | Entered Cetus 10446 | -6/Cetus | Accompanied by 6 allies (A7) 10451 | -6/Cetus | Acquired a Cetus Manufacturing Module code from A7 10467 | -6/Cetus | Spotted Cetus Guard 10467 | -6/Cetus | Spotted Cetus Guard 10470 | -6/Cetus | Spotted Cetus Guard 10479 | -6/Cetus | Spotted Cetus Guard 10485 | -6/Cetus | Allies destroyed Cetus Guard 10488 | -6/Cetus | Allies destroyed Cetus Guard 10491 | -6/Cetus | Allies destroyed Cetus Guard 10492 | -6/Cetus | Destroyed Cetus Guard 10689 | -6/Cetus | Started Cetus Manufacturing Module 10703 | -6/Cetus | Escorted A7 to Cetus Mainframe 10714 | -6/Cetus | Manufactured an Enhanced Grunt 10739 | -6/Cetus | Manufactured an Enhanced Grunt 10764 | -6/Cetus | Manufactured an Enhanced Grunt 10789 | -6/Cetus | Manufactured an Enhanced Grunt 10814 | -6/Cetus | Manufactured an Enhanced Grunt 10849 | -6/Cetus | Found a strange terminal 11003 | -6/Cetus | Discovered new exit (range 13) 11105 | -6/Cetus | Entered Archives 11105 | -6/Archives | Accompanied by 9 allies (A7) 11112 | -6/Archives | Received a hacking code to weaken MAIN.C 11157 | -6/Archives | Unable to access archive contents 11161 | -6/Archives | Discovered new exit (range 15) 11171 | -6/Archives | Unable to access archive contents 11174 | -6/Archives | Discovered new exit (range 16) 11184 | -6/Archives | Unable to access archive contents 11189 | -6/Archives | Discovered new exit (range 16) 11714 | -6/Archives | Build established: Commander-Skirmisher 11944 | -6/Archives | Entered Hub_04(d) 11944 | -6/Hub_04(d) | Accompanied by 7 allies 12060 | -6/Hub_04(d) | Discovered new exit (range 5) 12325 | -6/Hub_04(d) | Network Hub disabled 12332 | -6/Hub_04(d) | Entered Factory 12332 | -5/Factory | Accompanied by 5 allies 12332 | -5/Factory | Evolved 2 slots: Utility x1, Weapon x1 12403 | -5/Factory | Repaired Centrium Medium Armor Plating 12632 | -5/Factory | First assault squad dispatched 12698 | -5/Factory | Fabricated Y-64 Sentinel? 12891 | -5/Factory | Repaired Corrupted Centrium Heavy Treads 12930 | -5/Factory | Repaired Hrd. Medium Armor Plating 13037 | -5/Factory | Found Prototype Processor 13037 | -5/Factory | Identified Exp. Targeting Computer 13149 | -5/Factory | Discovered new exit (range 11) 13275 | -5/Factory | Identified exit to Factory 13275 | -5/Factory | Identified exit to Upper Caves 13327 | -5/Factory | Build established: Commander-Mutant 13393 | -5/Factory | Found Prototype Device 13393 | -5/Factory | Identified Exp. Thermal Shield 13465 | -5/Factory | Entered another Factory area 13465 | -4/Factory | Accompanied by 4 allies 13465 | -4/Factory | Evolved 2 slots: Propulsion x2 13764 | -4/Factory | First assault squad dispatched 13773 | -4/Factory | P-70 Sage assimilated allied Sentinel 6c 14219 | -4/Factory | Identified exit to Upper Caves 14702 | -4/Factory | Lost 3 parts (1u2w) 14703 | -4/Factory | Discovered new exit (range 16) 14759 | -4/Factory | Entered Research 14759 | -3/Research | Evolved 2 slots: Utility x2 14975 | -3/Research | Discovered new exit (range 16) 14991 | -3/Research | Discovered new exit (range 21) 15098 | -3/Research | Found Prototype Processor 15242 | -3/Research | Identified Spectral Analyzer 15754 | -3/Research | Identified exit to Armory 15754 | -3/Research | Identified exit to Testing 15875 | -3/Research | Entered another Research area 15875 | -2/Research | Evolved 2 slots: Power x1, Utility x1 16591 | -2/Research | Garrison activated, responded to threat 16674 | -2/Research | Build established: Scavenger-Skirmisher 16768 | -2/Research | Identified exit to Quarantine 16768 | -2/Research | Identified exit to Access 17104 | -2/Research | System corruption reached 10% 17306 | -2/Research | Lost 3 parts (2n1u) 17546 | -2/Research | Entered Access 17546 | -1/Access | Evolved 2 slots: Utility x1, Weapon x1 17822 | -1/Access | Repaired Centrium Medium Armor Plating 18737 | -1/Access | Build established: Scavenger-Mutant 18902 | -1/Access | Discovered new exit (range 6) 18941 | *** | Escaped! Last Messages --------------- 18843_ R-10 Processor destroyed. 18844_ U-05 Engineer builds a Wall. 18847_ Acquired 60 matter. 18848_ U-05 Engineer builds a Wall. 18853_ Dropped Adv. Heat Sink. 18853_ Acquired Adv. Heat Sink. 18854_ U-05 Engineer builds a Wall. 18863_ CQZOWIULTS UL ,8BFWH<%V&Z 18871_ U-05 Engineer builds a Wall. 18880_ System corrupted: Matter fused (-8). 18880_ U-05 Engineer builds a Wall. 18885_ Destroyed Welding Torch. 18885_ Destroyed Lgt. Ion Engine. 18889_ Main Access Shell breached. 18898_ U-05 Engineer builds a Wall. 18902_ EXIT=FOUND 18921_ U-05 Engineer builds a Wall. 18922_ CUFL7 >P